fUST/lending_fUST_20240223
["ID","MTS","AMOUNT","RATE_DAILY","PERIOD"]
[314925306,1708669849843,-500.0,0.00019451,2]
[314925307,1708669849852,-500.0,0.00019451,2]
[314925308,1708669849862,-524.76024454,0.00019451,2]
[314925309,1708669849871,-151.0,0.00019451,2]
[314925310,1708669849881,-43308.20283336,0.00019452,2]
[314925311,1708669849899,-513.30229121,0.00019452,2]
[314925312,1708669849926,-720.75067691,0.00019452,2]
[314925336,1708671033862,-524.93713581,0.00018316,2]
[314925337,1708671033873,-188.451815,0.00018317,2]
[314925338,1708671033882,-952.99691175,0.000189,2]
[314925339,1708671033891,-499.64,0.00019178,2]
[314925340,1708671033900,-500.0,0.00019178,2]
[314925341,1708671033909,-847.76,0.00019178,2]
[314925342,1708671033918,-500.0,0.00019178,2]
[314925343,1708671033928,-500.0,0.00019178,2]
[314925344,1708671033937,-500.0,0.00019178,2]
[314925345,1708671033946,-500.0,0.00019178,2]
[314925346,1708671033956,-1236.65,0.00019178,2]
[314925347,1708671033965,-500.0,0.00019178,2]
[314925348,1708671033974,-224.72949392,0.00019178,2]
[314925349,1708671033983,-650.35,0.00019178,2]
[314925350,1708671033994,-500.0,0.00019178,2]
[314925351,1708671034004,-202.51176436,0.00019178,2]
[314925352,1708671034013,-500.0,0.00019178,2]
[314925353,1708671034022,-244.57,0.00019178,2]
[314925354,1708671034031,-305.64,0.00019178,2]
[314925355,1708671034040,-364.62,0.00019178,2]
[314925356,1708671034050,-12.77637237,0.00019178,2]
[314925473,1708671045925,-487.22362763,0.00019178,2]
[314925474,1708671045935,-372.68487486,0.00019178,2]
[314925475,1708671045944,-471.82397417,0.00019178,2]
[314925476,1708671045954,-500.18720843,0.00019178,2]
[314925477,1708671045963,-500.0,0.00019178,2]
[314925478,1708671045972,-1496.23,0.00019178,2]
[314925479,1708671045982,-500.0,0.00019178,2]
[314925480,1708671045991,-500.0,0.00019178,2]
[314925481,1708671046000,-500.0,0.00019178,2]
[314925482,1708671046009,-279.4,0.00019178,2]
[314925483,1708671046019,-500.0,0.00019178,2]
[314925484,1708671046028,-693.84,0.00019178,2]
[314925485,1708671046037,-500.33043777,0.00019178,2]
[314925486,1708671046046,-500.0,0.00019178,2]
[314925487,1708671046056,-700.71,0.00019178,2]
[314925488,1708671046065,-500.0,0.00019178,2]
[314925489,1708671046074,-500.0,0.00019178,2]
[314925490,1708671046083,-500.0,0.00019178,2]
[314925491,1708671046093,-1468.66,0.00019178,2]
[314925492,1708671046102,-500.0,0.00019178,2]
[314925493,1708671046112,-239.65,0.00019178,2]
[314925494,1708671046121,-500.0,0.00019178,2]
[314925495,1708671046130,-500.0,0.00019178,2]
[314925496,1708671046139,-500.0,0.00019178,2]
[314925497,1708671046149,-451.49168927,0.00019178,2]
[314925498,1708671046158,-132.52829667,0.00019178,2]
[314925499,1708671046173,-367.47170333,0.00019178,2]
[314925500,1708671046182,-500.0,0.00019178,2]
[314925501,1708671046191,-164.89474913,0.00019178,2]
[314925545,1708672238083,-524.93713581,0.0001886,2]
[314925546,1708672238092,-2715.80139985,0.00018861,2]
[314925547,1708672238101,-1861.92142109,0.00018862,2]
[314925548,1708672238110,-844.69940105,0.000189,2]
[314925549,1708672238119,-1335.91262499,0.00019078,2]
[314925550,1708672238128,-27214.22866803,0.0001915,2]
[314925551,1708672238139,-1911.16934205,0.0001915,2]
[314925552,1708672238150,-8021.40552207,0.0001915,2]
[314925863,1708672241173,-1692.50074335,0.0001915,2]
[314926039,1708672243066,-6144.8559952,0.0001915,2]
[314926046,1708672243123,-701.83351409,0.0001915,2]
[314926249,1708672246224,-20442.0014445,0.0001915,2]
[314926250,1708672246234,-18949.65899699,0.00019167,2]
[314926251,1708672246243,-1004.78279577,0.00019177,2]
[314926252,1708672246252,-155.01240099,0.00019178,2]
[314926253,1708672246262,-500.0,0.00019178,2]
[314926254,1708672246272,-500.0,0.00019178,2]
[314926255,1708672246281,-501.5125697,0.00019178,2]
[314926256,1708672246291,-500.0,0.00019178,2]
[314926257,1708672246300,-500.0,0.00019178,2]
[314926258,1708672246309,-500.0,0.00019178,2]
[314926259,1708672246319,-500.0,0.00019178,2]
[314926260,1708672246328,-500.0,0.00019178,2]
[314926261,1708672246337,-500.0,0.00019178,2]
[314926262,1708672246347,-500.0,0.00019178,2]
[314926263,1708672246356,-500.9993525,0.00019178,2]
[314926264,1708672246365,-500.0,0.00019178,2]
[314926265,1708672246374,-500.0,0.00019178,2]
[314926266,1708672246383,-500.0,0.00019178,2]
[314926267,1708672246393,-500.0,0.00019178,2]
[314926268,1708672246402,-500.0,0.00019178,2]
[314926269,1708672246412,-500.0,0.00019178,2]
[314926270,1708672246422,-500.5903424,0.00019178,2]
[314926271,1708672246431,-602.81,0.00019178,2]
[314926273,1708672246440,-500.0,0.00019178,2]
[314926275,1708672246449,-220.78431812,0.00019178,2]
[314926277,1708672246459,-500.0,0.00019178,2]
[314926278,1708672246468,-500.0,0.00019178,2]
[314926280,1708672246477,-500.0,0.00019178,2]
[314926282,1708672246486,-500.0,0.00019178,2]
[314926284,1708672246495,-500.0,0.00019178,2]
[314926286,1708672246515,-500.0,0.00019178,2]
[314926288,1708672246525,-500.0,0.00019178,2]
[314926290,1708672246535,-619.86,0.00019178,2]
[314926292,1708672246544,-500.0,0.00019178,2]
[314926294,1708672246555,-500.0,0.00019178,2]
[314926296,1708672246564,-500.0,0.00019178,2]
[314926298,1708672246573,-500.0,0.00019178,2]
[314926299,1708672246582,-265.62125246,0.00019178,2]
[314926301,1708672246592,-500.0,0.00019178,2]
[314926303,1708672246601,-500.0,0.00019178,2]
[314926305,1708672246611,-500.0,0.00019178,2]
[314926306,1708672246621,-500.66398244,0.00019178,2]
[314926308,1708672246631,-500.0,0.00019178,2]
[314926310,1708672246641,-500.0,0.00019178,2]
[314926312,1708672246650,-500.0,0.00019178,2]
[314926314,1708672246661,-500.0,0.00019178,2]
[314926315,1708672246671,-500.0,0.00019178,2]
[314926316,1708672246681,-500.0,0.00019178,2]
[314926317,1708672246690,-155.12588784,0.00019178,2]
[314926318,1708672246700,-500.0,0.00019178,2]
[314926319,1708672246710,-500.0,0.00019178,2]
[314926320,1708672246720,-233.95,0.00019178,2]
[314926321,1708672246729,-500.0,0.00019178,2]
[314926322,1708672246739,-500.0,0.00019178,2]
[314926323,1708672246749,-500.0,0.00019178,2]
[314926324,1708672246759,-177.59133849,0.00019178,2]
[314926325,1708672246769,-500.17034226,0.00019178,2]
[314926326,1708672246779,-500.0,0.00019178,2]
[314926327,1708672246788,-500.0,0.00019178,2]
[314926328,1708672246803,-500.0,0.00019178,2]
[314926329,1708672246813,-500.0,0.00019178,2]
[314926330,1708672246824,-500.0,0.00019178,2]
[314926331,1708672246834,-500.0,0.00019178,2]
[314926332,1708672246844,-500.42744703,0.00019178,2]
[314926333,1708672246853,-500.0,0.00019178,2]
[314926334,1708672246863,-500.0,0.00019178,2]
[314926335,1708672246875,-526.54363036,0.00019178,2]
[314926336,1708672246885,-776.96,0.00019178,2]
[314926337,1708672246895,-451.59431048,0.00019178,2]
[314926338,1708672246904,-500.0,0.00019178,2]
[314926339,1708672246914,-500.0,0.00019178,2]
[314926340,1708672246925,-500.0,0.00019178,2]
[314926341,1708672246934,-500.0,0.00019178,2]
[314926342,1708672246943,-500.0,0.00019178,2]
[314926343,1708672246953,-1402.61,0.00019178,2]
[314926344,1708672246963,-500.0,0.00019178,2]
[314926345,1708672246973,-500.0,0.00019178,2]
[314926346,1708672246983,-501.89918778,0.00019178,2]
[314926347,1708672246992,-500.0,0.00019178,2]
[314926348,1708672247001,-500.0,0.00019178,2]
[314926349,1708672247011,-500.0,0.00019178,2]
[314926350,1708672247020,-530.03,0.00019178,2]
[314926351,1708672247030,-500.0,0.00019178,2]
[314926352,1708672247039,-500.0,0.00019178,2]
[314926353,1708672247049,-500.0,0.00019178,2]
[314926354,1708672247059,-500.0,0.00019178,2]
[314926355,1708672247068,-1000.0,0.00019178,2]
[314926356,1708672247078,-595.48,0.00019178,2]
[314926357,1708672247087,-500.0,0.00019178,2]
[314926358,1708672247096,-790.25,0.00019178,2]
[314926359,1708672247106,-500.0,0.00019178,2]
[314926360,1708672247115,-500.0,0.00019178,2]
[314926361,1708672247124,-500.0,0.00019178,2]
[314926362,1708672247134,-548.63,0.00019178,2]
[314926363,1708672247143,-3325.2,0.00019178,2]
[314926364,1708672247153,-341.61279409,0.00019178,2]
[314926366,1708672247162,-500.0,0.00019178,2]
[314926368,1708672247171,-500.0,0.00019178,2]
[314926370,1708672247180,-500.0,0.00019178,2]
[314926372,1708672247189,-500.0,0.00019178,2]
[314926373,1708672247198,-500.0,0.00019178,2]
[314926375,1708672247207,-500.0,0.00019178,2]
[314926376,1708672247216,-500.0,0.00019178,2]
[314926377,1708672247226,-630.4741948,0.00019178,2]
[314926378,1708672247235,-541.09161503,0.00019178,2]
[314926379,1708672247245,-500.0,0.00019178,2]
[314926380,1708672247255,-500.0,0.00019178,2]
[314926381,1708672247264,-630.18,0.00019178,2]
[314926382,1708672247274,-770.17,0.00019178,2]
[314926383,1708672247283,-500.0,0.00019178,2]
[314926384,1708672247293,-500.0,0.00019178,2]
[314926385,1708672247302,-500.0,0.00019178,2]
[314926387,1708672247311,-500.0,0.00019178,2]
[314926388,1708672247321,-500.0,0.00019178,2]
[314926390,1708672247330,-500.0,0.00019178,2]
[314926392,1708672247339,-500.0,0.00019178,2]
[314926393,1708672247348,-500.0,0.00019178,2]
[314926394,1708672247358,-500.0,0.00019178,2]
[314926395,1708672247367,-500.0,0.00019178,2]
[314926396,1708672247377,-344.03176169,0.00019178,2]
[314926397,1708672247386,-500.0,0.00019178,2]
[314926398,1708672247397,-500.0,0.00019178,2]
[314926399,1708672247406,-500.0,0.00019178,2]
[314926400,1708672247416,-500.0,0.00019178,2]
[314926401,1708672247426,-500.0,0.00019178,2]
[314926402,1708672247436,-379.00744584,0.00019178,2]
[314926404,1708672247446,-500.0,0.00019178,2]
[314926406,1708672247455,-500.0,0.00019178,2]
[314926408,1708672247465,-520.32,0.00019178,2]
[314926409,1708672247474,-520.32,0.00019178,2]
[314926411,1708672247483,-500.0,0.00019178,2]
[314926413,1708672247493,-208.28047684,0.00019178,2]
[314926415,1708672247503,-500.0,0.00019178,2]
[314926416,1708672247512,-615.54,0.00019178,2]
[314926417,1708672247521,-500.0,0.00019178,2]
[314926418,1708672247531,-500.0,0.00019178,2]
[314926419,1708672247540,-500.0,0.00019178,2]
[314926420,1708672247550,-500.0,0.00019178,2]
[314926421,1708672247559,-500.0,0.00019178,2]
[314926422,1708672247568,-500.0,0.00019178,2]
[314926423,1708672247577,-500.0,0.00019178,2]
[314926424,1708672247586,-1667.16,0.00019178,2]
[314926425,1708672247595,-500.0,0.00019178,2]
[314926426,1708672247605,-501.33877363,0.00019178,2]
[314926427,1708672247614,-500.0,0.00019178,2]
[314926428,1708672247623,-500.0,0.00019178,2]
[314926430,1708672247632,-777.45,0.00019178,2]
[314926431,1708672247643,-6191.37,0.00019178,2]
[314926433,1708672247652,-500.0,0.00019178,2]
[314926434,1708672247661,-151.0,0.00019178,2]
[314926435,1708672247670,-1656.33,0.00019178,2]
[314926436,1708672247680,-500.0,0.00019178,2]
[314926437,1708672247689,-1378.53,0.00019178,2]
[314926438,1708672247843,-500.0,0.00019178,2]
[314926439,1708672247852,-500.0,0.00019178,2]
[314926440,1708672247862,-500.0,0.00019178,2]
[314926441,1708672247872,-500.0,0.00019178,2]
[314926442,1708672247881,-1142.59,0.00019178,2]
[314926443,1708672247890,-501.29822517,0.00019178,2]
[314926444,1708672247899,-500.0,0.00019178,2]
[314926445,1708672247908,-500.0,0.00019178,2]
[314926446,1708672247917,-500.0,0.00019178,2]
[314926447,1708672247926,-500.0,0.00019178,2]
[314926448,1708672247936,-500.0,0.00019178,2]
[314926449,1708672247945,-500.0,0.00019178,2]
[314926450,1708672247954,-500.0,0.00019178,2]
[314926451,1708672247966,-500.0,0.00019178,2]
[314926452,1708672247975,-1609.97,0.00019178,2]
[314926453,1708672247984,-500.0,0.00019178,2]
[314926454,1708672247993,-1046.06,0.00019178,2]
[314926455,1708672248002,-500.0,0.00019178,2]
[314926456,1708672248012,-500.55293814,0.00019178,2]
[314926457,1708672248021,-500.0,0.00019178,2]
[314926458,1708672248030,-915.84,0.00019178,2]
[314926459,1708672248039,-1525.85,0.00019178,2]
[314926460,1708672248048,-500.35935132,0.00019178,2]
[314926461,1708672248057,-500.0,0.00019178,2]
[314926462,1708672248067,-500.0,0.00019178,2]
[314926463,1708672248076,-503.17763593,0.00019178,2]
[314926464,1708672248086,-500.0,0.00019178,2]
[314926465,1708672248095,-178.48792406,0.00019178,2]
[314926466,1708672248103,-500.0,0.00019178,2]
[314926467,1708672248112,-500.0,0.00019178,2]
[314926468,1708672248121,-1282.36,0.00019178,2]
[314926469,1708672248130,-1789.46,0.00019178,2]
[314926470,1708672248140,-500.0,0.00019178,2]
[314926471,1708672248149,-500.0,0.00019178,2]
[314926472,1708672248158,-1720.0,0.00019178,2]
[314926473,1708672248167,-500.0,0.00019178,2]
[314926474,1708672248176,-633.52071918,0.00019178,2]
[314926475,1708672248186,-201.47609417,0.00019178,2]
[314926476,1708672248195,-500.4285355,0.00019178,2]
[314926477,1708672248204,-500.0,0.00019178,2]
[314926478,1708672248213,-500.0,0.00019178,2]
[314926479,1708672248222,-644.43,0.00019178,2]
[314926480,1708672248231,-1000.0,0.00019178,2]
[314926481,1708672248240,-500.0,0.00019178,2]
[314926482,1708672248250,-540.19,0.00019178,2]
[314926483,1708672248260,-15356.15,0.00019178,2]
[314926484,1708672248269,-500.0,0.00019178,2]
[314926485,1708672248278,-500.0,0.00019178,2]
[314926486,1708672248288,-989.76,0.00019178,2]
[314926487,1708672248297,-500.0,0.00019178,2]
[314926488,1708672248307,-500.0,0.00019178,2]
[314926489,1708672248315,-500.0,0.00019178,2]
[314926490,1708672248324,-500.0,0.00019178,2]
[314926491,1708672248334,-500.0,0.00019178,2]
[314926492,1708672248343,-521.23616701,0.00019178,2]
[314926493,1708672248352,-500.0,0.00019178,2]
[314926494,1708672248361,-500.0,0.00019178,2]
[314926495,1708672248369,-500.0,0.00019178,2]
[314926496,1708672248378,-500.0,0.00019178,2]
[314926497,1708672248387,-500.0,0.00019178,2]
[314926498,1708672248395,-1638.67,0.00019178,2]
[314926499,1708672248404,-500.0,0.00019178,2]
[314926500,1708672248413,-500.0,0.00019178,2]
[314926501,1708672248422,-2263.19,0.00019178,2]
[314926502,1708672248431,-500.0,0.00019178,2]
[314926503,1708672248441,-661.49,0.00019178,2]
[314926504,1708672248450,-6622.51,0.00019178,2]
[314926505,1708672248459,-500.0,0.00019178,2]
[314926506,1708672248467,-500.0,0.00019178,2]
[314926507,1708672248478,-500.0,0.00019178,2]
[314926508,1708672248487,-538.37,0.00019178,2]
[314926509,1708672248496,-1292.8,0.00019178,2]
[314926510,1708672248505,-536.95,0.00019178,2]
[314926511,1708672248515,-500.0,0.00019178,2]
[314926512,1708672248524,-500.0,0.00019178,2]
[314926513,1708672248533,-500.0,0.00019178,2]
[314926514,1708672248542,-2455.16,0.00019178,2]
[314926515,1708672248551,-432.97786707,0.00019178,2]
[314926516,1708672248561,-500.0,0.00019178,2]
[314926517,1708672248570,-657.72,0.00019178,2]
[314926518,1708672248579,-500.0,0.00019178,2]
[314926519,1708672248588,-500.0,0.00019178,2]
[314926520,1708672248598,-500.0,0.00019178,2]
[314926521,1708672248607,-500.5218118,0.00019178,2]
[314926522,1708672248616,-819.01,0.00019178,2]
[314926523,1708672248626,-500.0,0.00019178,2]
[314926524,1708672248635,-500.0,0.00019178,2]
[314926525,1708672248644,-500.0,0.00019178,2]
[314926526,1708672248653,-557.78,0.00019178,2]
[314926527,1708672248662,-500.0,0.00019178,2]
[314926528,1708672248671,-1373.05,0.00019178,2]
[314926529,1708672248680,-500.0,0.00019178,2]
[314926530,1708672248690,-501.70461247,0.00019178,2]
[314926531,1708672248699,-500.0,0.00019178,2]
[314926532,1708672248708,-1356.28,0.00019178,2]
[314926533,1708672248718,-1222.0,0.00019178,2]
[314926534,1708672248727,-503.08591802,0.00019178,2]
[314926535,1708672248736,-5135.88,0.00019178,2]
[314926536,1708672248746,-500.0,0.00019178,2]
[314926537,1708672248756,-166.666666,0.00019178,2]
[314926538,1708672248765,-430.6992884,0.00019178,4]
[314926539,1708672248774,-170.82198,0.00019178,2]
[314926540,1708672248783,-580.0,0.000193,2]
[314926541,1708672248794,-3050.6390199,0.00019352,2]
[314926542,1708672248805,-151.0,0.00019352,2]
[314926543,1708672248814,-18681.43827025,0.00019352,2]
[314926544,1708672248830,-825.0980658,0.00019352,2]
[314926545,1708672756104,509.0,0.0003,120]
[314926547,1708673099128,2021.61,0.00018,2]
[314926642,1708673438284,-524.93713581,0.00018177,2]
[314926644,1708673438293,-250.0,0.00018178,2]
[314926646,1708673438303,-727.99379191,0.000189,2]
[314926648,1708673438312,-34486.1364289,0.0001916,2]
[314926650,1708673438321,-815.29047767,0.00019177,2]
[314926652,1708673438331,-155.50053405,0.00019178,2]
[314926654,1708673438340,-500.0,0.00019178,2]
[314926656,1708673438348,-500.0,0.00019178,2]
[314926658,1708673438357,-744.58,0.00019178,2]
[314926660,1708673438367,-500.0,0.00019178,2]
[314926662,1708673438376,-197.01034508,0.00019178,2]
[314926664,1708673438384,-3186.65,0.00019178,2]
[314926666,1708673438395,-500.0,0.00019178,2]
[314926668,1708673438404,-371.34330187,0.00019178,2]
[314926669,1708673438413,-190.5502052,0.00019178,2]
[314926671,1708673438423,-500.0,0.00019178,2]
[314926673,1708673438432,-500.0,0.00019178,2]
[314926675,1708673438441,-500.0,0.00019178,2]
[314926678,1708673438451,-500.0,0.00019178,2]
[314926679,1708673438460,-500.0,0.00019178,2]
[314926681,1708673438470,-456.04,0.00019178,2]
[314926684,1708673438480,-500.0,0.00019178,2]
[314926686,1708673438489,-231.23191091,0.00019178,2]
[314926688,1708673438498,-738.08,0.00019178,2]
[314926690,1708673438508,-525.27752141,0.00019178,2]
[314926692,1708673438519,-534.54,0.00019178,2]
[314926694,1708673438529,-500.0,0.00019178,2]
[314926695,1708673438538,-354.33392087,0.00019178,2]
[314926697,1708673438547,-500.0,0.00019178,2]
[314926699,1708673438556,-500.0,0.00019178,2]
[314926701,1708673438565,-543.34,0.00019178,2]
[314926703,1708673438575,-500.0,0.00019178,2]
[314926705,1708673438584,-404.21681105,0.00019178,2]
[314926707,1708673438593,-500.0,0.00019178,2]
[314926708,1708673438602,-500.0,0.00019178,2]
[314926709,1708673438612,-500.0,0.00019178,2]
[314926710,1708673438621,-1000.0,0.00019178,2]
[314926711,1708673438630,-976.78,0.00019178,2]
[314926712,1708673438639,-500.0,0.00019178,2]
[314926713,1708673438648,-757.32,0.00019178,2]
[314926714,1708673438657,-500.0,0.00019178,2]
[314926715,1708673438667,-500.73,0.00019178,2]
[314926716,1708673438676,-525.77,0.00019178,2]
[314926717,1708673438685,-500.0,0.00019178,2]
[314926718,1708673438695,-500.5211628,0.00019178,2]
[314926719,1708673438705,-500.0,0.00019178,2]
[314926720,1708673438715,-500.0,0.00019178,2]
[314926721,1708673438725,-500.0,0.00019178,2]
[314926722,1708673438735,-617.58,0.00019178,2]
[314926723,1708673438745,-500.60959108,0.00019178,2]
[314926724,1708673438755,-268.8,0.00019178,2]
[314926725,1708673438765,-500.0,0.00019178,2]
[314926726,1708673438780,-500.0,0.00019178,2]
[314926727,1708673438790,-500.0,0.00019178,2]
[314926728,1708673438799,-500.0,0.00019178,2]
[314926729,1708673438809,-1001.44015609,0.00019178,2]
[314926730,1708673438819,-500.0,0.00019178,2]
[314926731,1708673438828,-500.0,0.00019178,2]
[314926732,1708673438838,-500.0,0.00019178,2]
[314926733,1708673438847,-558.84,0.00019178,2]
[314926734,1708673438858,-558.84,0.00019178,2]
[314926735,1708673438868,-558.84,0.00019178,2]
[314926736,1708673438877,-558.84,0.00019178,2]
[314926737,1708673438886,-558.84,0.00019178,2]
[314926738,1708673438897,-500.0,0.00019178,2]
[314926739,1708673438906,-500.0,0.00019178,2]
[314926740,1708673438916,-500.0,0.00019178,2]
[314926742,1708673438925,-500.0,0.00019178,2]
[314926744,1708673438934,-500.0,0.00019178,2]
[314926746,1708673438943,-500.0,0.00019178,2]
[314926748,1708673438952,-500.0,0.00019178,2]
[314926750,1708673438962,-500.0,0.00019178,2]
[314926752,1708673438971,-1821.25,0.00019178,2]
[314926754,1708673438980,-500.0,0.00019178,2]
[314926756,1708673438989,-500.0,0.00019178,2]
[314926758,1708673438998,-852.88,0.00019178,2]
[314926760,1708673439007,-500.0,0.00019178,2]
[314926762,1708673439018,-500.0,0.00019178,2]
[314926764,1708673439028,-4963.41,0.00019178,2]
[314926766,1708673439037,-1825.81,0.00019178,2]
[314926768,1708673439047,-500.0,0.00019178,2]
[314926770,1708673439056,-6699.6,0.00019178,2]
[314926772,1708673439066,-500.0,0.00019178,2]
[314926774,1708673439075,-173.58,0.00019178,2]
[314926776,1708673439084,-500.0,0.00019178,2]
[314926778,1708673439094,-303.2262008,0.00019178,2]
[314926780,1708673439103,-1537.52,0.00019178,2]
[314926782,1708673439112,-500.0,0.00019178,2]
[314926784,1708673439121,-500.0,0.00019178,2]
[314926786,1708673439130,-500.0,0.00019178,2]
[314926788,1708673439139,-295.01720244,0.00019178,2]
[314926790,1708673439148,-1156.36,0.00019178,2]
[314926792,1708673439158,-1407.8,0.00019178,2]
[314926794,1708673439169,-500.0,0.00019178,2]
[314926796,1708673439179,-500.0,0.00019178,2]
[314926798,1708673439189,-500.0,0.00019178,2]
[314926800,1708673439200,-500.0,0.00019178,2]
[314926802,1708673439210,-500.0,0.00019178,2]
[314926804,1708673439219,-1293.16,0.00019178,2]
[314926806,1708673439228,-1702.63,0.00019178,2]
[314926808,1708673439238,-500.0,0.00019178,2]
[314926810,1708673439247,-1204.0,0.00019178,2]
[314926812,1708673439256,-500.0,0.00019178,2]
[314926814,1708673439265,-500.0,0.00019178,2]
[314926815,1708673439277,-166.56,0.00019178,2]
[314926817,1708673439286,-500.0,0.00019178,2]
[314926819,1708673439295,-500.0,0.00019178,2]
[314926821,1708673439303,-500.0,0.00019178,2]
[314926823,1708673439312,-1798.94,0.00019178,2]
[314926825,1708673439320,-6325.58865819,0.00019178,2]
[314927012,1708673441553,-875.73586419,0.00019178,2]
[314927106,1708673443295,-6303.36547762,0.00019178,2]
[314927107,1708673443304,-15807.67,0.00019178,2]
[314927108,1708673443314,-241.65,0.00019178,2]
[314927109,1708673443323,-500.0,0.00019178,2]
[314927110,1708673443332,-500.0,0.00019178,2]
[314927111,1708673443342,-500.0,0.00019178,2]
[314927112,1708673443351,-500.0,0.00019178,2]
[314927113,1708673443360,-500.0,0.00019178,2]
[314927115,1708673443370,-517.68,0.00019178,2]
[314927116,1708673443379,-1911.3,0.00019178,2]
[314927117,1708673443388,-500.0,0.00019178,2]
[314927118,1708673443398,-500.0,0.00019178,2]
[314927119,1708673443407,-500.0,0.00019178,2]
[314927120,1708673443416,-1228.93,0.00019178,2]
[314927121,1708673443425,-500.0,0.00019178,2]
[314927122,1708673443434,-1739.84,0.00019178,2]
[314927123,1708673443444,-500.0,0.00019178,2]
[314927124,1708673443454,-500.0,0.00019178,2]
[314927125,1708673443463,-515.93,0.00019178,2]
[314927126,1708673443473,-500.0,0.00019178,2]
[314927127,1708673443483,-500.0,0.00019178,2]
[314927128,1708673443492,-1030.31,0.00019178,2]
[314927129,1708673443501,-500.0,0.00019178,2]
[314927130,1708673443510,-500.0,0.00019178,2]
[314927131,1708673443519,-500.0,0.00019178,2]
[314927132,1708673443529,-500.0,0.00019178,2]
[314927133,1708673443538,-500.0,0.00019178,2]
[314927134,1708673443548,-319.70759572,0.00019178,2]
[314927135,1708673443557,-500.0,0.00019178,2]
[314927136,1708673443566,-500.0,0.00019178,2]
[314927137,1708673443575,-500.0,0.00019178,2]
[314927138,1708673443584,-500.0,0.00019178,2]
[314927139,1708673443598,-325.67,0.00019178,2]
[314927140,1708673443606,-633.93,0.00019178,2]
[314927141,1708673443616,-500.0,0.00019178,2]
[314927142,1708673443625,-848.41,0.00019178,2]
[314927143,1708673443634,-500.0,0.00019178,2]
[314927144,1708673443652,-7118.14,0.00019178,2]
[314927145,1708673443664,-2458.33,0.00019178,2]
[314927146,1708673443673,-1259.77,0.00019178,2]
[314927147,1708673443683,-375.62660645,0.00019178,2]
[314927148,1708673443692,-2502.26,0.00019178,2]
[314927149,1708673443701,-500.0,0.00019178,2]
[314927150,1708673443711,-330.8,0.00019178,2]
[314927151,1708673443721,-1315.84,0.00019178,2]
[314927152,1708673443731,-500.0,0.00019178,2]
[314927153,1708673443741,-500.0,0.00019178,2]
[314927154,1708673443750,-500.0,0.00019178,2]
[314927155,1708673443759,-554.18861888,0.00019178,2]
[314927156,1708673443769,-687.78,0.00019178,2]
[314927158,1708673443785,-1620.81,0.00019178,2]
[314927160,1708673443795,-500.0,0.00019178,2]
[314927161,1708673443804,-500.0,0.00019178,2]
[314927162,1708673443813,-4756.6,0.00019178,2]
[314927164,1708673443822,-713.56,0.00019178,2]
[314927165,1708673443831,-1239.28,0.00019178,2]
[314927166,1708673443841,-166.666666,0.00019178,2]
[314927167,1708673443850,-20863.56916206,0.0001929,3]
[314927168,1708673443863,-1486.0,0.0001929,3]